[Event "Championnat du monde jeunes U12"]
[Date "2024.11.18"]
[White "Birmenko, Nikolay"]
[Black "Bundan, Edward"]
[WhiteElo "2084"]
[BlackElo "1905"]
[Round "4.20"]
[Result "1-0"]
[TimeControl "5400+30"]

1. e4 {[%clk 1:30:57]} 1... c5 {[%clk 1:30:53]} 2. Nf3 {[%clk 1:31:17]} 2... Nc6
{[%clk 1:31:18]} 3. Bb5 {[%clk 1:31:24]} 3... e5 {[%clk 1:31:39]} 4. Bxc6 {[%clk
1:30:38]} 4... dxc6 {[%clk 1:32:00]} 5. O-O {[%clk 1:30:23]} 5... Bd6 {[%clk
1:32:14]} 6. h3 {[%clk 1:28:49]} 6... Ne7 {[%clk 1:32:21]} 7. d3 {[%clk
1:28:50]} 7... O-O {[%clk 1:31:51]} 8. a4 {[%clk 1:25:17]} 8... f6 {[%clk
1:29:59]} 9. Na3 {[%clk 1:21:32]} 9... Be6 {[%clk 1:29:18]} 10. Be3 {[%clk
1:18:31]} 10... b6 {[%clk 1:25:19]} 11. Nd2 {[%clk 1:11:57]} 11... Ng6 {[%clk
1:16:23]} 12. Qe2 {[%clk 1:01:11]} 12... Qe7 {[%clk 1:11:47]} 13. Nac4 {[%clk
0:58:04]} 13... Bc7 {[%clk 1:08:38]} 14. Nb3 {[%clk 0:56:09]} 14... Nf4 {[%clk
1:06:36]} 15. Bxf4 {[%clk 0:52:52]} 15... exf4 {[%clk 1:05:33]} 16. Rfe1 {[%clk
0:40:46]} 16... Bxc4 {[%clk 0:58:05]} 17. dxc4 {[%clk 0:41:10]} 17... Qe5 {[%clk
0:58:06]} 18. c3 {[%clk 0:38:04]} 18... Rfe8 {[%clk 0:52:23]} 19. Qc2 {[%clk
0:27:44]} 19... f3 {[%clk 0:48:06]} 20. g3 {[%clk 0:28:06]} 20... Qh5 {[%clk
0:44:10]} 21. Re3 {[%clk 0:24:49]} 21... Qxh3 {[%clk 0:43:01]} 22. Rxf3 {[%clk
0:23:52]} 22... Re5 {[%clk 0:42:20]} 23. Rf5 {[%clk 0:23:02]} 23... Rae8 {[%clk
0:40:53]} 24. Rxe5 {[%clk 0:21:36]} 24... Rxe5 {[%clk 0:40:52]} 25. Qd3 {[%clk
0:21:59]} 25... Rg5 {[%clk 0:25:41]} 26. Qf1 {[%clk 0:19:47]} 26... Qh4 {[%clk
0:23:02]} 27. e5 {[%clk 0:18:14]} 27... Bxe5 {[%clk 0:21:55]} 28. Qe2 {[%clk
0:18:24]} 28... Qg4 {[%clk 0:19:34]} 29. Qxg4 {[%clk 0:17:34]} 29... Rxg4 {[%clk
0:19:57]} 30. a5 {[%clk 0:16:45]} 30... f5 {[%clk 0:15:00]} 31. axb6 {[%clk
0:08:57]} 31... axb6 {[%clk 0:15:24]} 32. Kf1 {[%clk 0:09:19]} 32... h5 {[%clk
0:14:21]} 33. Ra6 {[%clk 0:09:32]} 33... Rxc4 {[%clk 0:13:28]} 34. Rxb6 {[%clk
0:09:53]} 34... f4 {[%clk 0:11:56]} 35. gxf4 {[%clk 0:09:12]} 35... Bxf4 {[%clk
0:12:04]} 36. Rxc6 {[%clk 0:09:23]} 36... Ra4 {[%clk 0:11:18]} 37. Nxc5 {[%clk
0:09:11]} 37... Ra1+ {[%clk 0:11:10]} 38. Kg2 {[%clk 0:09:20]} 38... Kf7 {[%clk
0:09:53]} 39. Nd3 {[%clk 0:09:24]} 39... Bd2 {[%clk 0:07:53]} 40. Ne5+ {[%clk
0:08:40]} 40... Ke7 {[%clk 0:07:37]} 41. Nf3 {[%clk 0:08:42]} 41... Bf4 {[%clk
0:07:36]} 42. Rc5 {[%clk 0:07:13]} 42... g6 {[%clk 0:07:20]} 43. b4 {[%clk
0:07:09]} 43... Rb1 {[%clk 0:07:29]} 44. Nh4 {[%clk 0:05:57]} 44... Kf7 {[%clk
0:06:39]} 45. Nf3 {[%clk 0:05:43]} 45... Kf6 {[%clk 0:06:26]} 46. Rc6+ {[%clk
0:05:37]} 46... Kf7 {[%clk 0:06:44]} 47. Nd4 {[%clk 0:05:35]} 47... Rb2 {[%clk
0:06:43]} 48. Kf3 {[%clk 0:05:00]} 48... Be5 {[%clk 0:06:16]} 49. Ne6 {[%clk
0:04:54]} 49... Rb3 {[%clk 0:06:09]} 50. Ng5+ {[%clk 0:05:15]} 50... Kg7 {[%clk
0:06:20]} 51. Ne4 {[%clk 0:05:33]} 51... g5 {[%clk 0:05:34]} 52. Rc5 {[%clk
0:05:21]} 52... g4+ {[%clk 0:05:15]} 53. Kg2 {[%clk 0:05:23]} 53... Bxc3 {[%clk
0:02:56]} 54. Rxc3 {[%clk 0:05:02]} 54... Rxb4 {[%clk 0:03:15]} 55. Ng3 {[%clk
0:05:28]} 55... Rb5 {[%clk 0:03:19]} 56. Nf1 {[%clk 0:05:01]} 56... Kg6 {[%clk
0:03:37]} 57. Ne3 {[%clk 0:05:09]} 57... Kg5 {[%clk 0:03:32]} 58. Rc8 {[%clk
0:05:13]} 58... Ra5 {[%clk 0:03:37]} 59. Rg8+ {[%clk 0:05:36]} 59... Kh6 {[%clk
0:03:42]} 60. Kg3 {[%clk 0:05:33]} 60... Rb5 {[%clk 0:03:44]} 61. Kh4 {[%clk
0:05:30]} 61... Ra5 {[%clk 0:03:56]} 62. Nf1 {[%clk 0:04:20]} 62... Ra2 {[%clk
0:03:59]} 63. Rf8 {[%clk 0:04:23]} 63... Kg7 {[%clk 0:03:10]} 64. Rf4 {[%clk
0:04:39]} 64... Kg6 {[%clk 0:03:22]} 65. Ng3 {[%clk 0:04:44]} 65... Ra1 {[%clk
0:03:22]} 66. Rb4 {[%clk 0:04:46]} 66... Ra2 {[%clk 0:03:32]} 67. Rb6+ {[%clk
0:04:26]} 67... Kf7 {[%clk 0:03:23]} 68. Ne4 {[%clk 0:04:26]} 68... Re2 {[%clk
0:03:29]} 69. Rf6+ {[%clk 0:03:39]} 69... Kg7 {[%clk 0:03:41]} 70. Ng3 {[%clk
0:03:24]} 70... Re5 {[%clk 0:02:15]} 71. Rf5 {[%clk 0:03:22]} 71... Re1 {[%clk
0:01:51]} 72. Nxh5+ {[%clk 0:03:40]} 72... Kg6 {[%clk 0:02:14]} 73. Rf6+ {[%clk
0:04:04]} 73... Kh7 {[%clk 0:02:37]} 74. Kxg4 {[%clk 0:04:27]} 74... Rg1+ {[%clk
0:02:57]} 75. Ng3 {[%clk 0:04:52]} 75... Kg7 {[%clk 0:03:18]} 76. Ra6 {[%clk
0:05:16]} 76... Kf7 {[%clk 0:03:36]} 77. Kf5 {[%clk 0:05:31]} 77... Rg2 {[%clk
0:03:58]} 78. Ne4 {[%clk 0:05:56]} 78... Rg1 {[%clk 0:04:16]} 79. Ra7+ {[%clk
0:06:17]} 79... Ke8 {[%clk 0:04:35]} 80. f4 {[%clk 0:06:37]} 80... Rf1 {[%clk
0:04:52]} 81. Ke5 {[%clk 0:06:44]} 81... Rh1 {[%clk 0:05:11]} 82. f5 {[%clk
0:06:49]} 82... Rh2 {[%clk 0:05:27]} 83. Ke6 {[%clk 0:07:07]} 83... Rh6+ {[%clk
0:05:47]} 84. f6 {[%clk 0:07:30]} 84... Kd8 {[%clk 0:06:00]} 85. Rd7+ {[%clk
0:07:40]} 85... Kc8 {[%clk 0:06:09]} 86. Nd6+ {[%clk 0:08:02]} 86... Kb8 {[%clk
0:06:33]} 87. Rb7+ {[%clk 0:08:23]} 87... Ka8 {[%clk 0:06:57]} 88. Rb1 {[%clk
0:08:48]} 88... Ka7 {[%clk 0:06:55]} 89. Ke7 {[%clk 0:09:09]} 1-0

[Variant "Standard"]
[Site "Europe Echecs"]

[Event "Championnat du monde jeunes U12"]
[Date "2024.11.18"]
[White "Tona, Leonardo"]
[Black "Batbaatar, Baatar"]
[WhiteElo "1906"]
[BlackElo "2030"]
[Round "4.21"]
[Result "1/2-1/2"]
[TimeControl "5400+30"]

1. e4 {[%clk 1:30:57]} 1... c5 {[%clk 1:30:54]} 2. Nc3 {[%clk 1:31:24]} 2... a6
{[%clk 1:31:19]} 3. f4 {[%clk 1:31:43]} 3... b5 {[%clk 1:31:21]} 4. d3 {[%clk
1:31:29]} 4... Bb7 {[%clk 1:31:46]} 5. Nf3 {[%clk 1:31:52]} 5... e6 {[%clk
1:32:11]} 6. g3 {[%clk 1:31:29]} 6... d5 {[%clk 1:32:10]} 7. exd5 {[%clk
1:31:29]} 7... exd5 {[%clk 1:32:23]} 8. Bg2 {[%clk 1:31:47]} 8... Nf6 {[%clk
1:26:12]} 9. Ne5 {[%clk 1:28:53]} 9... Bd6 {[%clk 1:21:29]} 10. O-O {[%clk
1:28:23]} 10... O-O {[%clk 1:20:53]} 11. d4 {[%clk 1:23:25]} 11... Nbd7 {[%clk
1:12:54]} 12. Be3 {[%clk 1:17:39]} 12... cxd4 {[%clk 1:07:37]} 13. Bxd4 {[%clk
1:17:06]} 13... b4 {[%clk 1:07:00]} 14. Nxd7 {[%clk 1:15:51]} 14... Qxd7 {[%clk
0:56:16]} 15. Bxf6 {[%clk 1:15:24]} 15... bxc3 {[%clk 0:55:50]} 16. Bxc3 {[%clk
1:15:45]} 16... Rfe8 {[%clk 0:54:25]} 17. Qd4 {[%clk 1:15:09]} 17... Bf8 {[%clk
0:54:47]} 18. Rfe1 {[%clk 1:13:08]} 18... Rec8 {[%clk 0:54:32]} 19. Kh1 {[%clk
1:11:56]} 19... Rc4 {[%clk 0:53:26]} 20. Qd3 {[%clk 1:10:52]} 20... Rac8 {[%clk
0:52:21]} 21. Re2 {[%clk 0:58:19]} 21... d4 {[%clk 0:47:56]} 22. Be1 {[%clk
0:53:41]} 22... Bxg2+ {[%clk 0:47:05]} 23. Rxg2 {[%clk 0:53:58]} 23... Qb7
{[%clk 0:47:09]} 24. c3 {[%clk 0:52:31]} 24... dxc3 {[%clk 0:47:12]} 25. Bxc3
{[%clk 0:52:53]} 25... Bb4 {[%clk 0:47:13]} 26. Rd1 {[%clk 0:49:11]} 26... h6
{[%clk 0:45:50]} 27. Bxb4 {[%clk 0:48:43]} 27... Rxb4 {[%clk 0:45:31]} 28. b3
{[%clk 0:48:29]} 28... a5 {[%clk 0:45:48]} 29. Qd5 {[%clk 0:44:04]} 29... Qxd5
{[%clk 0:44:42]} 30. Rxd5 {[%clk 0:44:05]} 30... a4 {[%clk 0:44:42]} 31. Rb2
{[%clk 0:42:50]} 31... Rc3 {[%clk 0:43:43]} 32. Rdd2 {[%clk 0:42:23]} 32... axb3
{[%clk 0:43:58]} 33. axb3 {[%clk 0:42:46]} 33... Rbxb3 {[%clk 0:44:25]} 34. Rxb3
{[%clk 0:43:03]} 34... Rxb3 {[%clk 0:44:50]} 35. Kg2 {[%clk 0:43:26]} 35... f5
{[%clk 0:45:07]} 36. h3 {[%clk 0:43:10]} 36... h5 {[%clk 0:44:14]} 37. h4 {[%clk
0:41:21]} 37... Kf7 {[%clk 0:44:30]} 38. Re2 {[%clk 0:41:22]} 38... Rb6 {[%clk
0:44:38]} 39. Kf3 {[%clk 0:41:30]} 39... Rb3+ {[%clk 0:44:59]} 40. Kf2 {[%clk
0:41:05]} 40... Ra3 {[%clk 0:45:09]} 41. Rb2 {[%clk 0:41:00]} 41... Rc3 {[%clk
0:43:57]} 42. Rb7+ {[%clk 0:41:23]} 42... Kf6 {[%clk 0:44:20]} 43. Rb6+ {[%clk
0:41:48]} 43... Kf7 {[%clk 0:44:44]} 44. Rb7+ {[%clk 0:42:00]} 1/2-1/2

[Variant "Standard"]
[Site "Europe Echecs"]

[Event "Championnat du monde jeunes U12"]
[Date "2024.11.18"]
[White "Tatvidze, Davit"]
[Black "Belyaletdinov, Leonard"]
[WhiteElo "2024"]
[BlackElo "1903"]
[Round "4.22"]
[Result "1-0"]
[TimeControl "5400+30"]

1. c4 {[%clk 1:30:58]} 1... e5 {[%clk 1:30:58]} 2. Nc3 {[%clk 1:31:10]} 2... f5
{[%clk 1:31:24]} 3. g3 {[%clk 1:31:30]} 3... Nf6 {[%clk 1:31:38]} 4. Bg2 {[%clk
1:31:58]} 4... d6 {[%clk 1:31:09]} 5. d3 {[%clk 1:30:41]} 5... g6 {[%clk
1:31:28]} 6. Bg5 {[%clk 1:29:34]} 6... Bg7 {[%clk 1:30:02]} 7. e3 {[%clk
1:29:17]} 7... c6 {[%clk 1:30:26]} 8. Nge2 {[%clk 1:28:19]} 8... O-O {[%clk
1:30:41]} 9. O-O {[%clk 1:27:55]} 9... Nbd7 {[%clk 1:31:01]} 10. b4 {[%clk
1:26:22]} 10... Qe8 {[%clk 1:28:21]} 11. b5 {[%clk 1:13:55]} 11... Nc5 {[%clk
1:25:11]} 12. Bxf6 {[%clk 0:57:57]} 12... Bxf6 {[%clk 1:24:06]} 13. d4 {[%clk
0:57:56]} 13... Ne6 {[%clk 1:24:06]} 14. bxc6 {[%clk 0:56:09]} 14... bxc6 {[%clk
1:24:14]} 15. d5 {[%clk 0:55:50]} 15... cxd5 {[%clk 1:20:25]} 16. Nxd5 {[%clk
0:55:28]} 16... e4 {[%clk 1:19:51]} 17. Nxf6+ {[%clk 0:55:03]} 17... Rxf6 {[%clk
1:19:51]} 18. Qxd6 {[%clk 0:55:06]} 18... Qf7 {[%clk 1:17:58]} 19. Rab1 {[%clk
0:30:21]} 19... g5 {[%clk 1:15:42]} 20. f3 {[%clk 0:27:59]} 20... Kg7 {[%clk
1:12:47]} 21. Qe5 {[%clk 0:26:41]} 21... Ba6 {[%clk 1:01:12]} 22. fxe4 {[%clk
0:24:52]} 22... fxe4 {[%clk 1:00:33]} 23. Nc3 {[%clk 0:24:29]} 23... Re8 {[%clk
0:59:37]} 24. Nxe4 {[%clk 0:24:49]} 24... Nf4 {[%clk 0:59:43]} 25. Qxf6+ {[%clk
0:24:17]} 25... Qxf6 {[%clk 1:00:07]} 26. Nxf6 {[%clk 0:24:44]} 26... Kxf6
{[%clk 1:00:23]} 27. exf4 {[%clk 0:25:08]} 27... Bxc4 {[%clk 1:00:33]} 28. fxg5+
{[%clk 0:25:28]} 1-0

[Variant "Standard"]
[Site "Europe Echecs"]

[Event "Championnat du monde jeunes U12"]
[Date "2024.11.18"]
[White "Vaidyanathan, Adithya"]
[Black "Vinales Gonzalez, Enzo Mathias"]
[WhiteElo "2018"]
[BlackElo "1903"]
[Round "4.23"]
[Result "0-1"]
[TimeControl "5400+30"]

1. d4 {[%clk 1:30:58]} 1... Nf6 {[%clk 1:30:54]} 2. Nf3 {[%clk 1:31:25]} 2... g6
{[%clk 1:31:19]} 3. c4 {[%clk 1:31:52]} 3... Bg7 {[%clk 1:31:45]} 4. Nc3 {[%clk
1:32:19]} 4... O-O {[%clk 1:32:02]} 5. e4 {[%clk 1:32:47]} 5... d6 {[%clk
1:32:23]} 6. h3 {[%clk 1:33:14]} 6... e5 {[%clk 1:32:41]} 7. Be3 {[%clk
1:33:41]} 7... exd4 {[%clk 1:33:00]} 8. Nxd4 {[%clk 1:34:05]} 8... Nc6 {[%clk
1:33:25]} 9. Be2 {[%clk 1:33:55]} 9... Re8 {[%clk 1:33:42]} 10. f3 {[%clk
1:30:21]} 10... Nh5 {[%clk 1:34:05]} 11. O-O {[%clk 1:30:34]} 11... Qh4 {[%clk
1:34:09]} 12. Ndb5 {[%clk 1:08:33]} 12... Bxh3 {[%clk 1:28:37]} 13. Qe1 {[%clk
0:55:38]} 13... Ng3 {[%clk 1:24:41]} 14. gxh3 {[%clk 0:54:11]} 14... Qxh3 {[%clk
1:24:39]} 15. Bf4 {[%clk 0:54:10]} 15... Qh1+ {[%clk 1:23:50]} 16. Kf2 {[%clk
0:54:39]} 16... Qh2+ {[%clk 1:24:09]} 17. Ke3 {[%clk 0:54:55]} 17... Nf5+ {[%clk
1:23:59]} 18. Kd2 {[%clk 0:50:47]} 18... Qxf4+ {[%clk 1:24:23]} 19. Kc2 {[%clk
0:51:06]} 19... Ne3+ {[%clk 1:24:30]} 20. Kb1 {[%clk 0:51:09]} 20... Nxf1 {[%clk
1:24:40]} 21. Qxf1 {[%clk 0:51:24]} 21... Bxc3 {[%clk 1:24:22]} 22. Nxc3 {[%clk
0:51:29]} 22... Nd4 {[%clk 1:24:32]} 23. Nd5 {[%clk 0:50:11]} 23... Qd2 {[%clk
1:24:46]} 24. Bd1 {[%clk 0:49:35]} 24... b5 {[%clk 1:21:19]} 25. Nf6+ {[%clk
0:33:09]} 25... Kg7 {[%clk 1:19:21]} 26. Nxe8+ {[%clk 0:33:22]} 26... Rxe8
{[%clk 1:19:45]} 27. cxb5 {[%clk 0:31:37]} 27... d5 {[%clk 1:19:40]} 28. a3
{[%clk 0:22:02]} 28... dxe4 {[%clk 1:18:16]} 29. fxe4 {[%clk 0:22:25]} 29... Re5
{[%clk 1:17:27]} 30. Ka2 {[%clk 0:19:41]} 30... Nxb5 {[%clk 1:17:33]} 31. Qc4
{[%clk 0:19:22]} 31... Nd6 {[%clk 1:13:48]} 32. Qxc7 {[%clk 0:18:31]} 32... Rxe4
{[%clk 1:10:46]} 33. Rb1 {[%clk 0:05:19]} 33... Re3 {[%clk 1:05:14]} 34. Ba4
{[%clk 0:02:37]} 34... Qd5+ {[%clk 0:57:56]} 35. Ka1 {[%clk 0:01:51]} 35... Qd4
{[%clk 0:57:56]} 36. Ka2 {[%clk 0:00:45]} 36... Nc4 {[%clk 0:57:04]} 37. Bb3
{[%clk 0:00:35]} 37... Rxb3 {[%clk 0:52:28]} 38. Kxb3 {[%clk 0:01:03]} 38...
Nd2+ {[%clk 0:52:48]} 39. Kc2 {[%clk 0:01:30]} 39... Nxb1 {[%clk 0:53:05]} 40.
Kxb1 {[%clk 0:01:58]} 40... h5 {[%clk 0:53:04]} 41. Qc8 {[%clk 0:00:41]} 41...
Qe4+ {[%clk 0:52:49]} 42. Kc1 {[%clk 0:00:53]} 42... Qd4 {[%clk 0:52:43]} 43.
Kc2 {[%clk 0:00:31]} 43... h4 {[%clk 0:52:50]} 44. Qh3 {[%clk 0:00:37]} 44...
Qf2+ {[%clk 0:52:02]} 45. Kc1 {[%clk 0:00:56]} 45... Qf4+ {[%clk 0:51:51]} 46.
Kd1 {[%clk 0:01:21]} 46... Qg3 {[%clk 0:50:57]} 47. Qd7 {[%clk 0:00:59]} 47...
Qf3+ {[%clk 0:50:57]} 48. Ke1 {[%clk 0:01:05]} 48... h3 {[%clk 0:49:07]} 49.
Qd4+ {[%clk 0:01:33]} 49... Qf6 {[%clk 0:48:59]} 50. Qxa7 {[%clk 0:00:45]} 50...
Qxb2 {[%clk 0:49:04]} 51. Kf1 {[%clk 0:00:35]} 51... h2 {[%clk 0:49:09]} 52. Qa8
{[%clk 0:01:00]} 52... Qc1+ {[%clk 0:49:15]} 53. Kf2 {[%clk 0:01:28]} 53... h1=Q
{[%clk 0:49:31]} 0-1

[Variant "Standard"]
[Site "Europe Echecs"]

[Event "Championnat du monde jeunes U12"]
[Date "2024.11.18"]
[White "Fadeev, Justin Michael"]
[Black "Elhusseiny, Eyad"]
[WhiteElo "1878"]
[BlackElo "2017"]
[Round "4.24"]
[Result "1/2-1/2"]
[TimeControl "5400+30"]

1. e4 {[%clk 1:30:59]} 1... c5 {[%clk 1:30:57]} 2. Nf3 {[%clk 1:31:25]} 2... d6
{[%clk 1:31:23]} 3. d4 {[%clk 1:31:50]} 3... cxd4 {[%clk 1:31:50]} 4. Nxd4
{[%clk 1:32:14]} 4... Nf6 {[%clk 1:32:18]} 5. Nc3 {[%clk 1:32:29]} 5... a6
{[%clk 1:32:41]} 6. Be3 {[%clk 1:32:33]} 6... e5 {[%clk 1:33:03]} 7. Nf3 {[%clk
1:32:56]} 7... Be7 {[%clk 1:32:58]} 8. Bc4 {[%clk 1:33:14]} 8... O-O {[%clk
1:33:21]} 9. O-O {[%clk 1:33:32]} 9... Nc6 {[%clk 1:33:41]} 10. Bg5 {[%clk
1:31:55]} 10... Be6 {[%clk 1:33:37]} 11. Bb3 {[%clk 1:29:16]} 11... Nd7 {[%clk
1:32:02]} 12. Bxe7 {[%clk 1:22:19]} 12... Qxe7 {[%clk 1:32:24]} 13. Qd2 {[%clk
1:21:00]} 13... Nf6 {[%clk 1:26:46]} 14. Rad1 {[%clk 1:18:13]} 14... Rfd8 {[%clk
1:25:07]} 15. Rfe1 {[%clk 1:16:41]} 15... Rac8 {[%clk 1:19:01]} 16. h3 {[%clk
1:08:25]} 16... Na5 {[%clk 1:14:14]} 17. Nd5 {[%clk 1:00:53]} 17... Bxd5 {[%clk
1:11:02]} 18. Bxd5 {[%clk 0:59:19]} 18... Nxd5 {[%clk 1:09:09]} 19. Qxa5 {[%clk
0:50:00]} 19... Nf4 {[%clk 1:02:48]} 20. Rd2 {[%clk 0:45:05]} 20... Qf6 {[%clk
1:01:18]} 21. Kh2 {[%clk 0:42:47]} 21... h5 {[%clk 0:56:13]} 22. Qb6 {[%clk
0:36:19]} 22... g5 {[%clk 0:33:19]} 23. Ng1 {[%clk 0:19:34]} 23... Ne6 {[%clk
0:28:05]} 24. Qe3 {[%clk 0:17:06]} 24... Kh7 {[%clk 0:26:08]} 25. Qf3 {[%clk
0:15:37]} 25... Qg6 {[%clk 0:26:15]} 26. c3 {[%clk 0:12:45]} 26... Rc4 {[%clk
0:23:51]} 27. Qf5 {[%clk 0:11:43]} 27... Nc5 {[%clk 0:21:25]} 28. Qxg6+ {[%clk
0:10:40]} 28... Kxg6 {[%clk 0:21:49]} 29. f3 {[%clk 0:10:53]} 29... Kf6 {[%clk
0:21:16]} 30. Red1 {[%clk 0:11:06]} 30... Ke7 {[%clk 0:21:36]} 31. Ne2 {[%clk
0:09:12]} 31... Ne6 {[%clk 0:18:57]} 32. Ng3 {[%clk 0:09:31]} 32... Ng7 {[%clk
0:19:20]} 33. Kg1 {[%clk 0:08:11]} 33... h4 {[%clk 0:19:28]} 34. Nf1 {[%clk
0:08:28]} 34... Ra4 {[%clk 0:18:41]} 35. b3 {[%clk 0:06:29]} 35... Ra5 {[%clk
0:19:07]} 36. b4 {[%clk 0:05:17]} 36... Ra3 {[%clk 0:19:30]} 37. Ne3 {[%clk
0:05:22]} 37... Ne8 {[%clk 0:19:06]} 38. Nf5+ {[%clk 0:04:22]} 38... Ke6 {[%clk
0:19:11]} 39. c4 {[%clk 0:04:43]} 39... a5 {[%clk 0:16:27]} 40. c5 {[%clk
0:03:46]} 40... axb4 {[%clk 0:16:13]} 41. cxd6 {[%clk 0:03:34]} 41... Rd7 {[%clk
0:12:56]} 42. Rb2 {[%clk 0:01:07]} 42... Nxd6 43. Rbd2 Ne8 1/2-1/2

[Variant "Standard"]
[Site "Europe Echecs"]

[Event "Championnat du monde jeunes U12"]
[Date "2024.11.18"]
[White "Le, Anh Tu"]
[Black "Vorobyov, Radmir"]
[WhiteElo "1812"]
[BlackElo "2017"]
[Round "4.25"]
[Result "1-0"]
[TimeControl "5400+30"]

1. e4 {[%clk 1:30:57]} 1... c6 {[%clk 1:30:57]} 2. d4 {[%clk 1:31:21]} 2... d5
{[%clk 1:31:23]} 3. Nd2 {[%clk 1:31:45]} 3... dxe4 {[%clk 1:31:50]} 4. Nxe4
{[%clk 1:32:08]} 4... Nf6 {[%clk 1:32:16]} 5. Nxf6+ {[%clk 1:32:23]} 5... exf6
{[%clk 1:32:42]} 6. Nf3 {[%clk 1:32:47]} 6... Bd6 {[%clk 1:32:47]} 7. Bd3 {[%clk
1:33:06]} 7... O-O {[%clk 1:32:56]} 8. O-O {[%clk 1:33:29]} 8... Bg4 {[%clk
1:32:53]} 9. h3 {[%clk 1:32:37]} 9... Bh5 {[%clk 1:33:07]} 10. c3 {[%clk
1:32:03]} 10... Nd7 {[%clk 1:16:50]} 11. Re1 {[%clk 1:30:42]} 11... Re8 {[%clk
1:14:29]} 12. Be3 {[%clk 1:27:22]} 12... Nf8 {[%clk 1:13:54]} 13. Be2 {[%clk
1:27:16]} 13... Bc7 {[%clk 0:57:55]} 14. Qd2 {[%clk 1:22:31]} 14... Qd6 {[%clk
0:54:45]} 15. g3 {[%clk 1:21:18]} 15... Qe6 {[%clk 0:50:50]} 16. Kg2 {[%clk
1:17:44]} 16... Qe4 {[%clk 0:51:05]} 17. Rad1 {[%clk 1:16:20]} 17... Ng6 {[%clk
0:42:13]} 18. Qd3 {[%clk 1:09:49]} 18... Qd5 {[%clk 0:41:11]} 19. c4 {[%clk
1:09:17]} 19... Qd6 {[%clk 0:41:09]} 20. Qf5 {[%clk 1:07:53]} 20... Rxe3 {[%clk
0:23:04]} 21. Qxh5 {[%clk 1:06:23]} 21... Re7 {[%clk 0:21:00]} 22. Bd3 {[%clk
1:04:13]} 22... Rae8 {[%clk 0:18:06]} 23. Rxe7 {[%clk 1:04:33]} 23... Rxe7
{[%clk 0:18:27]} 24. c5 {[%clk 1:03:04]} 24... Qd8 {[%clk 0:15:40]} 25. Bc4
{[%clk 0:58:24]} 25... b5 {[%clk 0:13:34]} 26. Bb3 {[%clk 0:57:11]} 26... Rd7
{[%clk 0:06:45]} 27. Re1 {[%clk 0:51:58]} 27... Re7 {[%clk 0:06:20]} 28. Rxe7
{[%clk 0:51:36]} 28... Qxe7 {[%clk 0:06:45]} 29. Qg4 {[%clk 0:52:00]} 29... Nf8
{[%clk 0:04:06]} 30. Qc8 {[%clk 0:48:40]} 30... a5 {[%clk 0:04:10]} 31. a4
{[%clk 0:49:03]} 31... b4 {[%clk 0:04:20]} 32. Bc4 {[%clk 0:48:40]} 32... Qd7
{[%clk 0:03:38]} 33. Qa8 {[%clk 0:48:30]} 33... Bd8 {[%clk 0:01:23]} 34. Ba6
{[%clk 0:48:48]} 34... Ne6 {[%clk 0:01:47]} 35. Bb7 {[%clk 0:47:58]} 35... Nxd4
{[%clk 0:01:34]} 36. Nxd4 {[%clk 0:48:18]} 36... Qxd4 {[%clk 0:02:01]} 37. Bxc6
{[%clk 0:48:47]} 37... g6 {[%clk 0:01:46]} 38. Bd5 {[%clk 0:48:47]} 38... Qxc5
{[%clk 0:00:38]} 39. Qxd8+ {[%clk 0:49:03]} 39... Kg7 {[%clk 0:01:05]} 40. Qd7
{[%clk 0:49:18]} 40... f5 {[%clk 0:00:39]} 41. Qxf7+ {[%clk 0:49:36]} 41... Kh6
{[%clk 0:01:06]} 42. Bf3 {[%clk 0:49:23]} 42... Qd6 {[%clk 0:01:04]} 43. Qd5
{[%clk 0:49:34]} 43... Qc7 {[%clk 0:01:27]} 44. h4 {[%clk 0:49:22]} 1-0

[Variant "Standard"]
[Site "Europe Echecs"]